[Event "FIDE WCCC Open-08 2024"]
[Site "Montesilvano"]
[Date "2024.11.18"]
[Round "2.10"]
[White "Divith Reddy Adulla"]
[Black "Movsisyan, Samvel"]
[Result "1-0"]
[ECO "B22"]
[WhiteElo "1784"]
[BlackElo "1604"]
[PlyCount "73"]
[EventDate "2024.11.18"]
[EventType "swiss"]
[EventCountry "ITA"]
[TimeControl "5400+30"]

1. e4 {[%emt 0:00:23]} c5 {[%emt 0:00:08]} 2. c3 {[%emt 0:00:05]} Nc6 {[%emt 0:00:05]} 3. d4 {[%emt 0:00:07]} cxd4 {[%emt 0:00:44]} 4. cxd4 {[%emt 0:00:06]} d5 {[%emt 0:00:10]} 5. exd5 {[%emt 0:00:04]} Qxd5 {[%emt 0:00:06]} 6. Nf3 {[%emt 0:00:04]} Bg4 {[%emt 0:00:12]} 7. Nc3 {[%emt 0:00:06]} Qd7 {[%emt 0:01:53]} 8. d5 {[%emt 0:00:06]} Bxf3 {[%emt 0:01:13]} 9. gxf3 {[%emt 0:00:06]} O-O-O {[%emt 0:03:02]} 10. dxc6 {[%emt 0:00:12]} Qxc6 {[%emt 0:00:05]} 11. Qe2 {[%emt 0:00:18]} Kb8 {[%emt 0:01:07]} 12. Bf4+ {[%emt 0:00:21]} Ka8 {[%emt 0:00:25]} 13. Nb5 {[%emt 0:01:17]} e5 {[%emt 0:00:33]} 14. Bd2 {[%emt 0:01:38]} Bc5 {[%emt 0:02:38]} 15. Rc1 {[%emt 0:02:11]} Qb6 {[%emt 0:06:06]} 16. Rc2 {[%emt 0:01:33]} Nf6 {[%emt 0:00:59]} 17. b4 {[%emt 0:00:22]} Bd4 {[%emt 0:01:41]} 18. a4 {[%emt 0:01:10]} Nd5 {[%emt 0:02:15]} 19. a5 {[%emt 0:00:24]} Qg6 {[%emt 0:01:35]} 20. Qd1 {[%emt 0:03:14]} Nxb4 {[%emt 0:01:28]} 21. Rc4 {[%emt 0:01:56]} Nd3+ {[%emt 0:05:16]} 22. Bxd3 {[%emt 0:00:12]} Qxd3 {[%emt 0:00:14]} 23. Qe2 {[%emt 0:00:13]} Qb1+ {[%emt 0:02:53]} 24. Rc1 {[%emt 0:00:09]} Qg6 {[%emt 0:02:05]} 25. Be3 {[%emt 0:01:17]} Rc8 {[%emt 0:01:11]} 26. Nc7+ {[%emt 0:01:57]} Kb8 {[%emt 0:00:18]} 27. Bxd4 {[%emt 0:00:08]} Qg5 {[%emt 0:07:19]} 28. Be3 {[%emt 0:00:13]} Qg2 {[%emt 0:00:58]} 29. Rf1 {[%emt 0:00:32]} Rxc7 {[%emt 0:00:16]} 30. Bxa7+ {[%emt 0:00:19]} Kc8 {[%emt 0:00:11]} 31. Rxc7+ {[%emt 0:00:07]} Kxc7 {[%emt 0:00:06]} 32. Qc4+ {[%emt 0:00:23]} Kd6 {[%emt 0:01:23]} 33. Bc5+ {[%emt 0:00:25]} Kc6 {[%emt 0:00:30]} 34. Bb4+ {[%emt 0:00:12]} Kd7 {[%emt 0:00:32]} 35. Ke2 {[%emt 0:00:10]} Rd8 {[%emt 0:01:50]} 36. Rd1+ {[%emt 0:00:43]} Ke8 {[%emt 0:00:10]} 37. Qb5+ {[%emt 0:00:04]} 1-0

[Event "FIDE WCCC Open-08 2024"]
[Site "Montesilvano"]
[Date "2024.11.18"]
[Round "2.11"]
[White "Stankowski, Wiktor"]
[Black "Lan, Kai Zhou"]
[Result "1/2-1/2"]
[ECO "B34"]
[WhiteElo "1617"]
[BlackElo "1784"]
[PlyCount "38"]
[EventDate "2024.11.18"]
[EventType "swiss"]
[EventCountry "ITA"]
[TimeControl "5400+30"]

1. e4 {[%emt 0:00:04]} c5 {[%emt 0:00:12]} 2. Nf3 {[%emt 0:00:16]} Nc6 {[%emt 0:00:07]} 3. d4 {[%emt 0:00:33]} cxd4 {[%emt 0:00:12]} 4. Nxd4 {[%emt 0:00:29]} g6 {[%emt 0:00:19]} 5. Nc3 {[%emt 0:00:58]} Bg7 {[%emt 0:00:13]} 6. Be3 {[%emt 0:01:24]} Nf6 {[%emt 0:00:23]} 7. f3 {[%emt 0:01:02]} O-O {[%emt 0:00:22]} 8. Qd2 {[%emt 0:00:54]} d5 {[%emt 0:05:55]} 9. Nxc6 {[%emt 0:07:09]} bxc6 {[%emt 0:00:27]} 10. O-O-O {[%emt 0:02:03]} e6 {[%emt 0:05:14]} 11. Bg5 {[%emt 0:05:05]} Qa5 {[%emt 0:07:14]} 12. h4 {[%emt 0:15:13]} Rb8 {[%emt 0:09:08]} 13. Bxf6 {[%emt 0:05:30]} Qb4 {[%emt 0:22:23]} 14. Nxd5 {[%emt 0:02:59]} Qxb2+ {[%emt 0:00:15]} 15. Bxb2 {[%emt 0:00:15]} Bxb2+ {[%emt 0:00:07]} 16. Kb1 {[%emt 0:00:13]} Bc3+ {[%emt 0:02:09]} 17. Kc1 {[%emt 0:00:36]} Bb2+ {[%emt 0:00:19]} 18. Kb1 {[%emt 0:00:14]} Bc3+ {[%emt 0:00:04]} 19. Kc1 {[%emt 0:00:21]} Bb2+ {[%emt 0:00:52]} 1/2-1/2

[Event "FIDE WCCC Open-08 2024"]
[Site "Montesilvano"]
[Date "2024.11.18"]
[Round "2.12"]
[White "Khantulga, Tuvshinbayar"]
[Black "Zhang, Yangming"]
[Result "0-1"]
[ECO "B33"]
[WhiteElo "1611"]
[BlackElo "1770"]
[PlyCount "126"]
[EventDate "2024.11.18"]
[EventType "swiss"]
[EventCountry "ITA"]
[TimeControl "5400+30"]

1. e4 {[%emt 0:00:02]} c5 {[%emt 0:00:04]} 2. Nf3 {[%emt 0:00:10]} Nc6 {[%emt 0:00:05]} 3. d4 {[%emt 0:00:06]} cxd4 {[%emt 0:00:28]} 4. Nxd4 {[%emt 0:00:09]} Nf6 {[%emt 0:00:30]} 5. Nc3 {[%emt 0:00:12]} e5 {[%emt 0:00:41]} 6. Ndb5 {[%emt 0:00:11]} d6 {[%emt 0:00:38]} 7. Bg5 {[%emt 0:00:16]} a6 {[%emt 0:00:35]} 8. Na3 {[%emt 0:00:06]} b5 {[%emt 0:00:33]} 9. Nd5 {[%emt 0:00:04]} Be7 {[%emt 0:00:48]} 10. Bxf6 {[%emt 0:00:07]} Bxf6 {[%emt 0:00:20]} 11. c4 {[%emt 0:00:08]} b4 {[%emt 0:00:32]} 12. Nc2 {[%emt 0:00:06]} a5 {[%emt 0:00:31]} 13. g3 {[%emt 0:00:35]} Rb8 {[%emt 0:01:16]} 14. Bg2 {[%emt 0:00:22]} b3 {[%emt 0:01:48]} 15. axb3 {[%emt 0:01:26]} Rb7 {[%emt 1:29:11]} 16. b4 Rxb4 {[%emt 0:00:00]} 17. Na3 {[%emt 0:00:49]} Rxb2 {[%emt 0:01:00]} 18. Nb5 {[%emt 0:00:13]} O-O {[%emt 0:00:00]} 19. Qc1 {[%emt 0:00:15]} Nb4 {[%emt 0:00:00]} 20. O-O {[%emt 0:00:46]} Rc2 {[%emt 0:00:00]} 21. Qb1 {[%emt 0:00:51]} Rxc4 {[%emt 0:00:00]} 22. Qb3 {[%emt 0:01:22]} Rc5 {[%emt 0:00:00]} 23. Nxf6+ {[%emt 0:00:36]} Qxf6 {[%emt 0:00:00]} 24. Rxa5 {[%emt 0:01:04]} Nc6 {[%emt 0:00:00]} 25. Ra8 {[%emt 0:01:17]} Be6 {[%emt 0:00:00]} 26. Rxf8+ {[%emt 0:00:42]} Kxf8 {[%emt 0:00:00]} 27. Qd1 {[%emt 0:01:21]} Bc4 {[%emt 0:00:00]} 28. Nxd6 {[%emt 0:01:31]} Bxf1 {[%emt 0:00:00]} 29. Bxf1 {[%emt 0:00:41]} Nd4 {[%emt 0:00:00]} 30. Nc4 {[%emt 0:00:54]} Qc6 {[%emt 0:00:00]} 31. Nxe5 {[%emt 0:03:56]} Rxe5 {[%emt 0:00:00]} 32. Qxd4 {[%emt 0:00:17]} Rxe4 {[%emt 0:00:00]} 33. Qd3 {[%emt 0:00:57]} h6 {[%emt 0:00:00]} 34. Qb1 {[%emt 0:01:43]} Qe8 {[%emt 0:00:00]} 35. Kg2 {[%emt 0:01:03]} Kg8 {[%emt 0:00:00]} 36. Bb5 {[%emt 0:00:35]} Re1 {[%emt 0:00:00]} 37. Qb2 {[%emt 0:00:56]} Qe4+ {[%emt 0:00:00]} 38. f3 {[%emt 0:00:05]} Rb1 {[%emt 0:00:00]} 39. Qa2 {[%emt 0:04:06]} Qf5 {[%emt 0:00:00]} 40. Bc6 {[%emt 0:04:44]} Rb8 {[%emt 0:00:00]} 41. Be4 {[%emt 0:00:12]} Qe5 {[%emt 0:00:00]} 42. Qa7 {[%emt 0:01:43]} Qb2+ {[%emt 0:00:00]} 43. Kh3 {[%emt 0:00:16]} Qe5 {[%emt 0:00:00]} 44. g4 {[%emt 0:01:19]} g6 {[%emt 0:00:00]} 45. Bd5 {[%emt 0:01:13]} Rf8 {[%emt 0:00:00]} 46. Qc5 {[%emt 0:00:39]} Qf4 {[%emt 0:00:00]} 47. Qc2 {[%emt 0:03:17]} Kg7 {[%emt 0:00:00]} 48. Qc3+ {[%emt 0:01:36]} Kg8 {[%emt 0:00:00]} 49. Qc6 {[%emt 0:00:20]} Kh7 {[%emt 0:00:00]} 50. Qd7 {[%emt 0:00:54]} Kg7 {[%emt 0:00:00]} 51. Be4 {[%emt 0:01:02]} Rb8 {[%emt 0:00:00]} 52. Qd4+ {[%emt 0:00:11]} Kg8 {[%emt 0:00:00]} 53. Qd5 {[%emt 0:00:57]} Rb2 {[%emt 0:00:00]} 54. Qd8+ {[%emt 0:01:21]} Kh7 {[%emt 0:00:00]} 55. Bxg6+ {[%emt 0:00:50]} fxg6 {[%emt 0:00:00]} 56. Qe7+ {[%emt 0:00:14]} Kg8 {[%emt 0:00:00]} 57. Qe8+ {[%emt 0:00:04]} Kg7 {[%emt 0:00:00]} 58. Qe7+ {[%emt 0:00:13]} Qf7 {[%emt 0:00:00]} 59. Qe5+ {[%emt 0:00:05]} Qf6 {[%emt 0:00:00]} 60. Qc7+ {[%emt 0:00:29]} Qf7 {[%emt 0:00:00]} 61. Qc3+ {[%emt 0:00:22]} Kh7 {[%emt 0:00:00]} 62. Qxb2 {[%emt 0:00:40]} Qxf3+ {[%emt 0:00:00]} 63. Kh4 {[%emt 0:00:08]} g5+ {[%emt 0:00:00]} 0-1

[Event "FIDE WCCC Open-08 2024"]
[Site "Montesilvano"]
[Date "2024.11.18"]
[Round "2.13"]
[White "Jevglevski, Lev"]
[Black "Elemes, Nurmukhamed"]
[Result "0-1"]
[ECO "B94"]
[WhiteElo "1602"]
[BlackElo "1735"]
[PlyCount "80"]
[EventDate "2024.11.18"]
[EventType "swiss"]
[EventCountry "ITA"]
[TimeControl "5400+30"]

1. e4 {[%emt 0:02:18]} c5 {[%emt 0:00:07]} 2. Nf3 {[%emt 0:00:14]} d6 {[%emt 0:00:09]} 3. d4 {[%emt 0:00:05]} cxd4 {[%emt 0:00:06]} 4. Nxd4 {[%emt 0:00:01]} Nf6 {[%emt 0:00:59]} 5. Nc3 {[%emt 0:00:11]} a6 {[%emt 0:01:09]} 6. Bg5 {[%emt 0:00:21]} Nbd7 {[%emt 0:00:29]} 7. f4 {[%emt 0:03:10]} Qc7 {[%emt 0:02:01]} 8. Qf3 {[%emt 0:01:11]} h6 {[%emt 0:01:52]} 9. Bxf6 {[%emt 0:01:26]} Nxf6 {[%emt 0:00:13]} 10. h3 {[%emt 0:01:10]} g5 {[%emt 0:02:31]} 11. Bd3 {[%emt 0:09:23]} Bg7 {[%emt 0:05:48]} 12. Rf1 {[%emt 0:09:43]} gxf4 {[%emt 0:05:54]} 13. Nf5 {[%emt 0:14:16]} Bxf5 {[%emt 0:02:12]} 14. exf5 {[%emt 0:00:23]} O-O-O {[%emt 0:01:24]} 15. Qxf4 {[%emt 0:02:56]} Nd7 {[%emt 0:02:43]} 16. Nd1 {[%emt 0:09:50]} e5 {[%emt 0:04:31]} 17. Qc4 {[%emt 0:01:52]} Nc5 {[%emt 0:01:53]} 18. f6 {[%emt 0:01:54]} Bf8 {[%emt 0:02:59]} 19. Ne3 {[%emt 0:01:01]} d5 {[%emt 0:00:31]} 20. Bf5+ {[%emt 0:03:40]} Ne6 {[%emt 0:00:38]} 21. Qxc7+ {[%emt 0:35:55]} Kxc7 {[%emt 0:00:21]} 22. O-O-O {[%emt 0:00:00]} Nf4 {[%emt 0:00:13]} 23. Ng4 {[%emt 0:00:00]} Bd6 {[%emt 0:00:59]} 24. Rfe1 {[%emt 0:00:00]} Nxg2 {[%emt 0:00:42]} 25. Re2 {[%emt 0:00:00]} Nf4 {[%emt 0:00:10]} 26. Ree1 {[%emt 0:00:00]} e4 {[%emt 0:00:56]} 27. c4 {[%emt 0:00:00]} Nd3+ {[%emt 0:00:06]} 28. Rxd3 {[%emt 0:00:00]} exd3 {[%emt 0:00:07]} 29. Bxd3 {[%emt 0:00:00]} Bf4+ {[%emt 0:00:39]} 30. Kb1 {[%emt 0:00:00]} Rhe8 {[%emt 0:00:37]} 31. Re7+ {[%emt 0:00:00]} Kb6 {[%emt 0:01:42]} 32. cxd5 {[%emt 0:00:00]} h5 {[%emt 0:01:36]} 33. Nf2 {[%emt 0:00:00]} Rxe7 {[%emt 0:00:11]} 34. fxe7 {[%emt 0:00:00]} Re8 {[%emt 0:00:13]} 35. Ne4 {[%emt 0:00:00]} Rxe7 {[%emt 0:00:21]} 36. Nf6 {[%emt 0:00:00]} Kc5 {[%emt 0:00:40]} 37. Nxh5 {[%emt 0:00:00]} Bg5 {[%emt 0:00:26]} 38. h4 {[%emt 0:00:00]} Bxh4 {[%emt 0:00:44]} 39. Nf4 {[%emt 0:00:00]} Bg5 {[%emt 0:00:28]} 40. Nh3 {[%emt 0:00:00]} Be3 {[%emt 0:00:19]} 0-1

[Event "FIDE WCCC Open-08 2024"]
[Site "Montesilvano"]
[Date "2024.11.18"]
[Round "2.14"]
[White "Tuguldur, Baatarchuluun"]
[Black "Kuncoro, Leo"]
[Result "1-0"]
[ECO "B22"]
[WhiteElo "1590"]
[BlackElo "1726"]
[PlyCount "111"]
[EventDate "2024.11.18"]
[EventType "swiss"]
[EventCountry "ITA"]
[TimeControl "5400+30"]

1. e4 {[%emt 0:00:03]} c5 {[%emt 0:00:04]} 2. c3 {[%emt 0:00:05]} d5 {[%emt 0:00:09]} 3. exd5 {[%emt 0:00:05]} Qxd5 {[%emt 0:00:07]} 4. d4 {[%emt 0:00:18]} Nc6 {[%emt 0:01:17]} 5. Nf3 {[%emt 0:00:08]} Bg4 {[%emt 0:00:13]} 6. Be2 {[%emt 0:00:08]} e6 {[%emt 0:01:42]} 7. c4 {[%emt 0:00:05]} Qe4 {[%emt 0:05:48]} 8. Nc3 {[%emt 0:00:30]} Qg6 {[%emt 0:01:53]} 9. d5 {[%emt 0:01:13]} exd5 {[%emt 0:07:15]} 10. cxd5 {[%emt 0:00:14]} O-O-O {[%emt 0:07:26]} 11. Nh4 {[%emt 0:00:30]} Bxe2 {[%emt 0:04:11]} 12. Nxg6 {[%emt 0:01:22]} Bxd1 {[%emt 0:02:14]} 13. Nxh8 {[%emt 0:00:07]} Bh5 {[%emt 0:00:53]} 14. dxc6 {[%emt 0:00:18]} b5 {[%emt 0:03:03]} 15. g4 {[%emt 0:00:15]} Re8+ {[%emt 0:01:12]} 16. Kd2 {[%emt 0:00:43]} Rd8+ {[%emt 0:00:23]} 17. Ke1 {[%emt 0:00:15]} Re8+ {[%emt 0:00:05]} 18. Be3 {[%emt 0:00:05]} Bxg4 {[%emt 0:00:57]} 19. Nxf7 {[%emt 0:00:08]} b4 {[%emt 0:01:15]} 20. Nb5 {[%emt 0:00:09]} Re6 {[%emt 0:01:11]} 21. Nxa7+ {[%emt 0:01:06]} Kb8 {[%emt 0:00:12]} 22. Nb5 {[%emt 0:02:08]} Nf6 {[%emt 0:04:10]} 23. c7+ {[%emt 0:01:13]} Kc8 {[%emt 0:01:05]} 24. Rc1 {[%emt 0:01:37]} Nd5 {[%emt 0:02:18]} 25. Nd8 {[%emt 0:01:11]} Re8 {[%emt 0:01:57]} 26. Rg1 {[%emt 0:02:02]} Bd7 {[%emt 0:00:42]} 27. Rg5 {[%emt 0:02:22]} Nxe3 {[%emt 0:00:51]} 28. Na7+ {[%emt 0:02:45]} Kxc7 {[%emt 0:00:27]} 29. fxe3 {[%emt 0:00:31]} Rxd8 {[%emt 0:01:11]} 30. Rd5 {[%emt 0:01:59]} Kb7 {[%emt 0:01:34]} 31. Rcd1 {[%emt 0:00:08]} Kc7 {[%emt 0:01:39]} 32. Nb5+ {[%emt 0:00:39]} Kc6 {[%emt 0:01:09]} 33. a4 {[%emt 0:00:16]} Be7 {[%emt 0:00:30]} 34. Rd6+ {[%emt 0:02:20]} Bxd6 {[%emt 0:00:41]} 35. Rxd6+ {[%emt 0:00:04]} Kb7 {[%emt 0:01:12]} 36. a5 {[%emt 0:02:25]} Kc8 {[%emt 0:03:29]} 37. Rd5 {[%emt 0:01:52]} Kb7 {[%emt 0:11:14]} 38. Rxc5 {[%emt 0:01:36]} Bc6 {[%emt 0:01:28]} 39. Nd4 {[%emt 0:00:22]} Rd6 {[%emt 0:03:11]} 40. Nxc6 {[%emt 0:02:38]} Rxc6 {[%emt 0:00:18]} 41. Rxc6 {[%emt 0:00:17]} Kxc6 {[%emt 0:00:07]} 42. e4 {[%emt 0:00:02]} g5 {[%emt 0:00:54]} 43. e5 {[%emt 0:00:04]} h5 {[%emt 0:00:28]} 44. a6 {[%emt 0:00:10]} g4 {[%emt 0:00:08]} 45. a7 {[%emt 0:00:26]} Kb7 {[%emt 0:00:02]} 46. e6 {[%emt 0:00:05]} Kxa7 {[%emt 0:00:14]} 47. e7 {[%emt 0:00:03]} Kb6 {[%emt 0:00:12]} 48. e8=Q {[%emt 0:00:02]} Kc5 {[%emt 0:00:08]} 49. Qe5+ {[%emt 0:00:13]} Kc4 {[%emt 0:00:07]} 50. Kd2 {[%emt 0:00:10]} g3 {[%emt 0:00:14]} 51. Qxg3 {[%emt 0:00:17]} h4 {[%emt 0:00:07]} 52. Qxh4+ {[%emt 0:00:03]} Kb3 {[%emt 0:00:09]} 53. Qf6 {[%emt 0:00:06]} Ka2 {[%emt 0:00:19]} 54. Kc2 {[%emt 0:00:10]} b3+ {[%emt 0:00:27]} 55. Kc1 {[%emt 0:00:07]} Ka1 {[%emt 0:00:03]} 56. Qa6# {[%emt 1:20:20]} 1-0

[Event "FIDE WCCC Open-08 2024"]
[Site "Montesilvano"]
[Date "2024.11.18"]
[Round "2.15"]
[White "Singh, Ian Avery"]
[Black "Muratshin, Ramazan"]
[Result "1-0"]
[ECO "C02"]
[WhiteElo "1713"]
[BlackElo "1597"]
[PlyCount "95"]
[EventDate "2024.11.18"]
[EventType "swiss"]
[EventCountry "ITA"]
[TimeControl "5400+30"]

1. e4 {[%emt 0:00:01]} e6 {[%emt 0:00:07]} 2. d4 {[%emt 0:00:05]} d5 {[%emt 0:00:14]} 3. e5 {[%emt 0:00:05]} c5 {[%emt 0:00:09]} 4. c3 {[%emt 0:00:07]} Nc6 {[%emt 0:00:06]} 5. Nf3 {[%emt 0:00:07]} Nge7 {[%emt 0:00:26]} 6. Na3 {[%emt 0:03:17]} a6 {[%emt 0:00:33]} 7. Nc2 {[%emt 0:00:36]} Ng6 {[%emt 1:32:25]} 8. g3 {[%emt 1:30:12]} Qb6 {[%emt 0:00:30]} 9. h4 {[%emt 0:00:30]} cxd4 {[%emt 0:00:30]} 10. cxd4 {[%emt 0:00:30]} Bd7 {[%emt 0:00:30]} 11. Bg2 {[%emt 0:00:00]} Rc8 {[%emt 0:00:00]} 12. O-O {[%emt 0:00:00]} Nge7 {[%emt 0:00:00]} 13. b3 {[%emt 0:00:00]} Qc7 {[%emt 0:00:00]} 14. Ne3 {[%emt 0:00:00]} Nf5 {[%emt 0:00:00]} 15. Nxf5 {[%emt 0:00:00]} exf5 {[%emt 0:00:00]} 16. Bf4 {[%emt 0:00:00]} Be6 {[%emt 0:00:00]} 17. Re1 {[%emt 0:00:00]} Bb4 {[%emt 0:00:00]} 18. Bd2 {[%emt 0:00:00]} Bxd2 {[%emt 0:00:00]} 19. Qxd2 {[%emt 0:00:00]} h6 {[%emt 0:00:00]} 20. Bh3 {[%emt 0:00:00]} O-O {[%emt 0:00:00]} 21. Rac1 {[%emt 0:00:00]} Qd7 {[%emt 0:00:00]} 22. h5 {[%emt 0:00:00]} Ne7 {[%emt 0:00:00]} 23. Nh4 {[%emt 0:00:00]} Rxc1 {[%emt 0:00:00]} 24. Rxc1 {[%emt 0:00:00]} Rc8 {[%emt 0:00:00]} 25. a3 {[%emt 0:00:00]} Rxc1+ {[%emt 0:00:00]} 26. Qxc1 {[%emt 0:00:00]} Qc6 {[%emt 0:00:00]} 27. Qxc6 {[%emt 0:00:00]} Nxc6 {[%emt 0:00:00]} 28. Nxf5 {[%emt 0:00:00]} Nxd4 {[%emt 0:00:00]} 29. Nxd4 {[%emt 0:00:00]} Bxh3 {[%emt 0:00:00]} 30. f3 {[%emt 0:00:00]} Bd7 {[%emt 0:00:00]} 31. Kf2 {[%emt 0:00:00]} Kf8 {[%emt 0:00:00]} 32. Ke3 {[%emt 0:00:00]} Ke7 {[%emt 0:00:00]} 33. Ne2 {[%emt 0:00:00]} Be6 {[%emt 0:00:00]} 34. Kd4 {[%emt 0:00:00]} b6 {[%emt 0:00:00]} 35. Nf4 {[%emt 0:00:00]} Kd7 {[%emt 0:00:00]} 36. Nxd5 {[%emt 0:00:00]} Kc6 {[%emt 0:00:00]} 37. Nb4+ {[%emt 0:00:00]} Kb5 {[%emt 0:13:30]} 38. Kc3 {[%emt 0:00:00]} f5 {[%emt 0:00:00]} 39. Nd3 {[%emt 0:00:42]} Bd5 {[%emt 0:00:00]} 40. a4+ {[%emt 0:00:21]} Ka5 {[%emt 0:00:00]} 41. Nf4 {[%emt 0:09:42]} Bc6 {[%emt 0:00:00]} 42. e6 {[%emt 0:00:22]} b5 {[%emt 0:00:00]} 43. axb5 {[%emt 0:00:09]} axb5 {[%emt 0:00:00]} 44. e7 {[%emt 0:00:11]} b4+ {[%emt 0:00:00]} 45. Kc4 {[%emt 0:00:15]} Bb5+ {[%emt 0:00:00]} 46. Kc5 {[%emt 0:00:05]} Be8 {[%emt 0:00:00]} 47. Ne6 {[%emt 0:00:38]} Bxh5 {[%emt 0:00:00]} 48. Nxg7 {[%emt 0:00:07]} 1-0

[Event "FIDE WCCC Open-08 2024"]
[Site "Montesilvano"]
[Date "2024.11.18"]
[Round "2.16"]
[White "Kavish Palaniappan K"]
[Black "Vo, Daniel"]
[Result "1-0"]
[ECO "C42"]
[WhiteElo "1589"]
[BlackElo "1711"]
[PlyCount "110"]
[EventDate "2024.11.18"]
[EventType "swiss"]
[EventCountry "ITA"]
[TimeControl "5400+30"]

1. e4 {[%emt 0:00:01]} e5 {[%emt 0:00:11]} 2. Nf3 {[%emt 0:00:25]} Nf6 {[%emt 0:00:23]} 3. Nxe5 {[%emt 0:00:27]} d6 {[%emt 0:00:06]} 4. Nf3 {[%emt 0:00:13]} Nxe4 {[%emt 0:00:20]} 5. Nc3 {[%emt 0:00:08]} Nxc3 {[%emt 0:00:09]} 6. dxc3 {[%emt 0:00:46]} Be7 {[%emt 0:00:58]} 7. Be3 {[%emt 0:01:32]} Nd7 {[%emt 0:01:29]} 8. Qd2 {[%emt 0:01:59]} Nf6 {[%emt 0:01:24]} 9. O-O-O {[%emt 0:01:06]} O-O {[%emt 0:01:34]} 10. Bd3 {[%emt 0:01:54]} d5 {[%emt 0:02:35]} 11. h4 {[%emt 0:04:43]} c6 {[%emt 0:01:20]} 12. h5 {[%emt 0:06:53]} Ne4 {[%emt 0:03:59]} 13. Bxe4 {[%emt 0:07:35]} dxe4 {[%emt 0:00:33]} 14. Nd4 {[%emt 0:00:36]} Qa5 {[%emt 0:02:02]} 15. Kb1 {[%emt 0:02:15]} h6 {[%emt 0:01:05]} 16. f3 {[%emt 0:02:04]} Rd8 {[%emt 0:20:55]} 17. Qe2 {[%emt 0:04:35]} exf3 {[%emt 0:10:51]} 18. gxf3 {[%emt 0:00:20]} Bf6 {[%emt 0:01:21]} 19. Rdg1 {[%emt 0:06:46]} Re8 {[%emt 0:04:09]} 20. Qd2 {[%emt 0:01:18]} Kh7 {[%emt 0:05:08]} 21. Qd3+ {[%emt 0:09:31]} Kh8 {[%emt 0:01:53]} 22. Nb3 {[%emt 0:01:22]} Qf5 {[%emt 0:00:53]} 23. Qd2 {[%emt 0:02:30]} Qh7 {[%emt 0:02:41]} 24. Bd4 {[%emt 0:08:44]} Bxd4 {[%emt 0:02:05]} 25. Nxd4 {[%emt 0:02:31]} c5 {[%emt 0:02:18]} 26. Nb5 {[%emt 0:03:42]} Bf5 {[%emt 0:02:33]} 27. Nd6 {[%emt 0:01:22]} Rab8 {[%emt 0:02:20]} 28. Nxf7+ {[%emt 0:00:04]} Kg8 {[%emt 0:00:34]} 29. Nxh6+ {[%emt 0:01:13]} Kh8 {[%emt 0:00:27]} 30. Nf7+ {[%emt 0:04:13]} Kg8 {[%emt 0:00:35]} 31. Ng5 {[%emt 0:01:08]} Qh6 {[%emt 0:02:41]} 32. Qd5+ {[%emt 0:00:21]} Be6 {[%emt 0:00:12]} 33. Nxe6 {[%emt 0:00:33]} Rxe6 {[%emt 0:00:19]} 34. Rg6 {[%emt 0:00:25]} Rbe8 {[%emt 0:01:05]} 35. Rxh6 {[%emt 0:00:25]} gxh6 {[%emt 0:00:07]} 36. a3 {[%emt 0:01:00]} Kh8 {[%emt 0:00:13]} 37. Rg1 {[%emt 0:01:13]} Re1+ {[%emt 0:00:39]} 38. Rxe1 {[%emt 0:00:20]} Rxe1+ {[%emt 0:00:17]} 39. Ka2 {[%emt 0:00:07]} b6 {[%emt 0:00:11]} 40. Qa8+ {[%emt 0:00:20]} Kg7 {[%emt 0:00:05]} 41. Qxa7+ {[%emt 0:00:04]} Kf6 {[%emt 0:00:09]} 42. Qxb6+ {[%emt 0:00:06]} Re6 {[%emt 0:00:09]} 43. Qxc5 {[%emt 0:00:10]} Re5 {[%emt 0:00:07]} 44. Qf8+ {[%emt 0:00:13]} Kg5 {[%emt 0:00:10]} 45. Qg7+ {[%emt 0:00:17]} Kf4 {[%emt 0:00:07]} 46. Qxh6+ {[%emt 0:00:15]} Kf5 {[%emt 0:00:08]} 47. Qg6+ {[%emt 0:00:12]} Kf4 {[%emt 0:00:10]} 48. Qf6+ {[%emt 0:00:15]} Rf5 {[%emt 0:00:04]} 49. Qxf5+ {[%emt 0:00:09]} Kxf5 {[%emt 0:00:12]} 50. a4 {[%emt 0:00:03]} Ke6 {[%emt 0:00:05]} 51. a5 {[%emt 0:00:11]} Ke7 {[%emt 0:00:11]} 52. a6 {[%emt 0:00:03]} Ke6 {[%emt 0:00:04]} 53. a7 {[%emt 0:00:04]} Ke5 {[%emt 0:00:08]} 54. a8=Q {[%emt 0:00:07]} Kf4 {[%emt 0:00:07]} 55. h6 {[%emt 0:00:05]} Ke3 {[%emt 0:00:04]} 1-0

[Event "FIDE WCCC Open-08 2024"]
[Site "Montesilvano"]
[Date "2024.11.18"]
[Round "2.17"]
[White "Kapitanski, Furion"]
[Black "Charyyev Charyhekim"]
[Result "1/2-1/2"]
[ECO "B07"]
[WhiteElo "1707"]
[BlackElo "1589"]
[PlyCount "93"]
[EventDate "2024.11.18"]
[EventType "swiss"]
[EventCountry "ITA"]
[TimeControl "5400+30"]

1. e4 {[%emt 0:00:02]} d6 {[%emt 0:00:11]} 2. d4 {[%emt 0:00:05]} Nf6 {[%emt 0:00:06]} 3. Nc3 {[%emt 0:00:10]} e5 {[%emt 0:00:07]} 4. dxe5 {[%emt 0:02:46]} dxe5 {[%emt 0:00:12]} 5. Qxd8+ {[%emt 0:00:09]} Kxd8 {[%emt 0:00:05]} 6. Nf3 {[%emt 0:00:19]} Bd6 {[%emt 0:00:14]} 7. Be3 {[%emt 0:03:03]} Ng4 {[%emt 0:04:59]} 8. Bg5+ {[%emt 0:00:55]} f6 {[%emt 0:00:43]} 9. Bh4 {[%emt 0:02:40]} c6 {[%emt 0:01:37]} 10. h3 {[%emt 0:02:58]} Nh6 {[%emt 0:03:49]} 11. g4 {[%emt 0:04:34]} Ke7 {[%emt 1:23:57]} 12. O-O-O {[%emt 0:00:58]} Nf7 {[%emt 0:00:00]} 13. Bc4 {[%emt 0:01:52]} Be6 {[%emt 0:00:00]} 14. Bxe6 {[%emt 0:01:04]} Kxe6 {[%emt 0:00:00]} 15. Nd2 {[%emt 0:04:17]} b5 {[%emt 0:00:00]} 16. Ne2 {[%emt 0:01:00]} h5 {[%emt 0:00:00]} 17. a4 {[%emt 0:00:39]} hxg4 {[%emt 0:00:00]} 18. hxg4 {[%emt 0:00:12]} Na6 {[%emt 0:00:00]} 19. axb5 {[%emt 0:00:47]} cxb5 {[%emt 0:00:00]} 20. Ng3 {[%emt 0:01:47]} g5 {[%emt 0:00:00]} 21. Bxg5 {[%emt 0:09:50]} Nxg5 {[%emt 0:00:00]} 22. Nh5 {[%emt 0:00:33]} Bb4 {[%emt 0:00:00]} 23. c3 {[%emt 0:01:25]} Ba5 {[%emt 0:00:00]} 24. f4 {[%emt 0:06:21]} Nf7 {[%emt 0:00:00]} 25. Ng7+ {[%emt 0:03:08]} Ke7 {[%emt 0:00:00]} 26. Nf5+ {[%emt 0:00:17]} Kf8 {[%emt 0:00:00]} 27. Rxh8+ {[%emt 0:01:01]} Nxh8 {[%emt 0:00:00]} 28. fxe5 {[%emt 0:00:33]} fxe5 {[%emt 0:00:00]} 29. Nf3 {[%emt 0:00:09]} Rd8 {[%emt 0:00:00]} 30. Rxd8+ {[%emt 0:03:12]} Bxd8 {[%emt 0:00:00]} 31. Nxe5 {[%emt 0:00:15]} Nb8 {[%emt 0:00:00]} 32. Nd4 {[%emt 0:01:30]} a6 {[%emt 0:00:00]} 33. g5 {[%emt 0:00:27]} Bxg5+ {[%emt 0:00:00]} 34. Kc2 {[%emt 0:00:15]} Ke7 {[%emt 0:00:00]} 35. b4 {[%emt 0:00:35]} Kd6 {[%emt 0:00:00]} 36. Nd3 {[%emt 0:01:02]} Nd7 {[%emt 0:00:27]} 37. Nb3 {[%emt 0:02:23]} Be3 {[%emt 0:00:42]} 38. Nb2 {[%emt 0:01:02]} Ne5 {[%emt 0:00:24]} 39. Nd3 {[%emt 0:00:09]} Nxd3 {[%emt 0:00:20]} 40. Kxd3 {[%emt 0:00:09]} Bb6 {[%emt 0:00:12]} 41. c4 {[%emt 0:02:08]} bxc4+ {[%emt 0:01:20]} 42. Kxc4 {[%emt 0:00:08]} Kc6 {[%emt 0:01:12]} 43. e5 {[%emt 0:01:03]} Nf7 {[%emt 0:01:39]} 44. e6 {[%emt 0:01:14]} Nd6+ {[%emt 0:03:06]} 45. Kc3 {[%emt 0:00:31]} Kb5 {[%emt 0:00:47]} 46. e7 {[%emt 0:01:30]} Bf2 {[%emt 0:00:20]} 47. Nc5 {[%emt 0:12:32]} 1/2-1/2